fUST/lending_fUST_20250905
["ID","MTS","AMOUNT","RATE_DAILY","PERIOD"]
[383684204,1757085037643,-480.0,0.00014246,2]
[383684205,1757085037653,-480.0,0.00014246,2]
[383684206,1757085037662,-480.0,0.00014246,2]
[383684207,1757085037674,-480.0,0.00014246,2]
[383684208,1757085037684,-480.0,0.00014246,2]
[383684209,1757085037694,-1041.73,0.00014246,2]
[383684210,1757085037705,-480.0,0.00014246,2]
[383684211,1757085037714,-480.0,0.00014246,2]
[383684212,1757085037724,-480.0,0.00014246,2]
[383684213,1757085037734,-480.0,0.00014246,2]
[383684214,1757085037744,-480.0,0.00014246,2]
[383684215,1757085037753,-480.0,0.00014246,2]
[383684216,1757085037762,-689.14,0.00014246,2]
[383684217,1757085037772,-754.63,0.00014246,2]
[383684218,1757085037782,-480.0,0.00014246,2]
[383684219,1757085037792,-480.0,0.00014246,2]
[383684220,1757085037801,-289.41551961,0.00014246,2]
[383684221,1757085037810,-480.0,0.00014246,2]
[383684223,1757085037820,-480.0,0.00014246,2]
[383684225,1757085037830,-467.94525932,0.00014336,2]
[383684226,1757085037840,-480.0,0.0001452,2]
[383684227,1757085037852,-480.0,0.0001452,2]
[383684228,1757085037862,-216.88,0.0001452,2]
[383684229,1757085037871,-480.0,0.0001452,2]
[383684230,1757085037881,-480.0,0.0001452,2]
[383684231,1757085037891,-480.0,0.0001452,2]
[383684232,1757085037901,-480.0,0.0001452,2]
[383684233,1757085037910,-480.0,0.0001452,2]
[383684234,1757085037919,-480.0,0.0001452,2]
[383684235,1757085037929,-1010.53,0.0001452,2]
[383684236,1757085037939,-480.0,0.0001452,2]
[383684237,1757085037948,-480.0,0.0001452,2]
[383684238,1757085037958,-480.0,0.0001452,2]
[383684239,1757085037967,-480.0,0.0001452,2]
[383684240,1757085037977,-480.0,0.0001452,2]
[383684241,1757085037988,-1041.73,0.0001452,2]
[383684242,1757085037997,-390.72,0.0001452,2]
[383684243,1757085038006,-480.0,0.0001452,2]
[383684244,1757085038016,-480.0,0.0001452,2]
[383684246,1757085038025,-480.0,0.0001452,2]
[383684248,1757085038035,-480.0,0.0001452,2]
[383684250,1757085038045,-480.0,0.0001452,2]
[383684252,1757085038055,-689.14,0.0001452,2]
[383684254,1757085038064,-754.63,0.0001452,2]
[383684256,1757085038074,-480.0,0.0001452,2]
[383684258,1757085038083,-480.0,0.0001452,2]
[383684260,1757085038092,-480.0,0.0001452,2]
[383684261,1757085038101,-480.0,0.0001452,2]
[383684262,1757085038110,-530.48792916,0.00014724,2]
[383684263,1757085038119,-203.18701864,0.00014724,2]
[383684264,1757085038128,-160.0,0.00014724,2]
[383684265,1757085038138,-417.15472785,0.00014724,2]
[383684266,1757085038147,-217.560113,0.00014724,2]
[383684267,1757085038157,-160.0,0.00014724,2]
[383684268,1757085038167,-846.49761657,0.00014724,2]
[383684269,1757085038177,-232.96244142,0.00014724,2]
[383684270,1757085038186,-160.0,0.00014724,2]
[383684272,1757085038196,-1000.0,0.00014768,2]
[383684273,1757085038205,-480.0,0.00014794,2]
[383684274,1757085038215,-480.0,0.00014794,2]
[383684275,1757085038224,-480.0,0.00014794,2]
[383684276,1757085038235,-480.0,0.00014794,2]
[383684277,1757085038244,-480.0,0.00014794,2]
[383684278,1757085038254,-480.0,0.00014794,2]
[383684279,1757085038263,-1010.53,0.00014794,2]
[383684280,1757085038273,-480.0,0.00014794,2]
[383684281,1757085038283,-480.0,0.00014794,2]
[383684282,1757085038292,-480.0,0.00014794,2]
[383684283,1757085038301,-480.0,0.00014794,2]
[383684284,1757085038311,-480.0,0.00014794,2]
[383684285,1757085038320,-1041.73,0.00014794,2]
[383684286,1757085038330,-184.26,0.00014794,2]
[383684287,1757085038339,-508.9969481,0.00014794,2]
[383684288,1757085038348,-480.0,0.00014794,2]
[383684289,1757085038358,-480.0,0.00014794,2]
[383684290,1757085038367,-689.14,0.00014794,2]
[383684291,1757085038377,-754.63,0.00014794,2]
[383684292,1757085038386,-480.0,0.00014794,2]
[383684293,1757085038395,-480.0,0.00014794,2]
[383684294,1757085038405,-303.27564609,0.00014794,2]
[383684295,1757085038414,-480.0,0.00014794,2]
[383684296,1757085038424,-168.02167146,0.000149,2]
[383684297,1757085038433,-168.02167145,0.000149,2]
[383684298,1757085038442,-168.02167145,0.000149,2]
[383684299,1757085038451,-160.0,0.00015,2]
[383684300,1757085038460,-10569.94136612,0.0001502,2]
[383684301,1757085038470,-480.0,0.00015068,2]
[383684302,1757085038479,-480.0,0.00015068,2]
[383684303,1757085038489,-480.0,0.00015068,2]
[383684304,1757085038502,-480.0,0.00015068,2]
[383684305,1757085038512,-480.0,0.00015068,2]
[383684306,1757085038521,-480.0,0.00015068,2]
[383684307,1757085038531,-1010.53,0.00015068,2]
[383684308,1757085038541,-480.0,0.00015068,2]
[383684309,1757085038550,-480.0,0.00015068,2]
[383684310,1757085038559,-480.0,0.00015068,2]
[383684311,1757085038569,-480.0,0.00015068,2]
[383684312,1757085038579,-480.0,0.00015068,2]
[383684313,1757085038590,-1041.73,0.00015068,2]
[383684314,1757085038600,-480.0,0.00015068,2]
[383684315,1757085038609,-480.0,0.00015068,2]
[383684316,1757085038619,-689.14,0.00015068,2]
[383684317,1757085038629,-754.63,0.00015068,2]
[383684318,1757085038638,-480.0,0.00015068,2]
[383684319,1757085038648,-480.0,0.00015068,2]
[383684320,1757085038657,-480.0,0.00015068,2]
[383684321,1757085038667,-151.0,0.00015195,2]
[383684322,1757085038676,-151.0,0.00015195,2]
[383684323,1757085038685,-151.0,0.00015195,2]
[383684324,1757085038695,-151.0,0.00015195,2]
[383684325,1757085038704,-153.32715265,0.00015195,2]
[383684326,1757085038714,-187.78006525,0.00015195,2]
[383684327,1757085038723,-250.0,0.00015195,2]
[383684328,1757085038736,-250.0,0.00015195,2]
[383684329,1757085038744,-250.0,0.00015195,2]
[383684330,1757085038754,-250.0,0.00015195,2]
[383684331,1757085038766,-250.0,0.00015195,2]
[383684332,1757085038775,-151.0,0.00015195,2]
[383684333,1757085038785,-151.0,0.00015195,2]
[383684334,1757085038795,-151.0,0.00015195,2]
[383684335,1757085038804,-151.0,0.00015195,2]
[383684336,1757085038814,-720.0,0.00015253,2]
[383684337,1757085038823,-480.0,0.00015342,2]
[383684338,1757085038833,-329.05243577,0.00015342,2]
[383684339,1757085038844,-480.0,0.00015342,2]
[383684340,1757085038854,-480.0,0.00015342,2]
[383684341,1757085038864,-480.0,0.00015342,2]
[383684342,1757085038876,-480.0,0.00015342,2]
[383684343,1757085039010,-1010.53,0.00015342,2]
[383684344,1757085039023,-480.0,0.00015342,2]
[383684345,1757085039036,-480.0,0.00015342,2]
[383684346,1757085039048,-480.0,0.00015342,2]
[383684347,1757085039060,-480.0,0.00015342,2]
[383684348,1757085039071,-480.0,0.00015342,2]
[383684349,1757085039081,-1041.73,0.00015342,2]
[383684350,1757085039091,-480.0,0.00015342,2]
[383684351,1757085039100,-480.0,0.00015342,2]
[383684352,1757085039110,-689.14,0.00015342,2]
[383684353,1757085039119,-754.63,0.00015342,2]
[383684354,1757085039129,-480.0,0.00015342,2]
[383684355,1757085039139,-480.0,0.00015342,2]
[383684356,1757085039149,-480.0,0.00015342,2]
[383684357,1757085039159,-480.0,0.00015616,2]
[383684358,1757085039168,-480.0,0.00015616,2]
[383684359,1757085039178,-480.0,0.00015616,2]
[383684360,1757085039188,-480.0,0.00015616,2]
[383684361,1757085039198,-1010.53,0.00015616,2]
[383684362,1757085039207,-480.0,0.00015616,2]
[383684363,1757085039217,-480.0,0.00015616,2]
[383684364,1757085039227,-480.0,0.00015616,2]
[383684365,1757085039239,-480.0,0.00015616,2]
[383684366,1757085039249,-480.0,0.00015616,2]
[383684367,1757085039259,-1041.73,0.00015616,2]
[383684368,1757085039269,-480.0,0.00015616,2]
[383684369,1757085039278,-480.0,0.00015616,2]
[383684370,1757085039288,-689.14,0.00015616,2]
[383684371,1757085039298,-754.63,0.00015616,2]
[383684372,1757085039307,-480.0,0.00015616,2]
[383684373,1757085039317,-480.0,0.00015616,2]
[383684374,1757085039335,-480.0,0.00015616,2]
[383684375,1757085039345,-709.388,0.00015701,2]
[383684376,1757085039354,-2153.0,0.00015701,2]
[383684377,1757085039364,-409.0,0.00015701,2]
[383684378,1757085039375,-480.0,0.0001589,2]
[383684379,1757085039384,-480.0,0.0001589,2]
[383684380,1757085039393,-480.0,0.0001589,2]
[383684381,1757085039403,-480.0,0.0001589,2]
[383684382,1757085039412,-1010.53,0.0001589,2]
[383684383,1757085039421,-480.0,0.0001589,2]
[383684384,1757085039431,-480.0,0.0001589,2]
[383684385,1757085039441,-480.0,0.0001589,2]
[383684386,1757085039450,-480.0,0.0001589,2]
[383684387,1757085039460,-480.0,0.0001589,2]
[383684388,1757085039470,-1041.73,0.0001589,2]
[383684389,1757085039479,-480.0,0.0001589,2]
[383684390,1757085039491,-480.0,0.0001589,2]
[383684391,1757085039502,-689.14,0.0001589,2]
[383684392,1757085039513,-754.63,0.0001589,2]
[383684393,1757085039523,-480.0,0.0001589,2]
[383684394,1757085039532,-480.0,0.0001589,2]
[383684395,1757085039542,-480.0,0.0001589,2]
[383684396,1757085039551,-3000.0,0.00016,2]
[383684397,1757085039560,-3000.0,0.0001601,2]
[383684398,1757085039570,-151.780187,0.0001601,2]
[383684399,1757085039579,-3000.0,0.0001602,2]
[383684400,1757085039589,-3000.0,0.0001603,2]
[383684401,1757085039599,-3000.0,0.0001604,2]
[383684402,1757085039608,-3000.0,0.0001605,2]
[383684403,1757085039617,-3000.0,0.0001606,2]
[383684404,1757085039627,-3000.0,0.0001607,2]
[383684405,1757085039636,-3000.0,0.0001608,2]
[383684406,1757085039647,-3000.0,0.0001609,2]
[383684407,1757085039666,-3000.0,0.000161,2]
[383684408,1757085039676,-3688.136742,0.0001611,2]
[383684409,1757085039685,-151.0,0.00016164,2]
[383684410,1757085039694,-480.0,0.00016164,2]
[383684411,1757085039703,-448.58481649,0.00016164,2]
[383684412,1757085039713,-480.0,0.00016164,2]
[383684413,1757085039723,-480.0,0.00016164,2]
[383684414,1757085039734,-1010.53,0.00016164,2]
[383684415,1757085039743,-480.0,0.00016164,2]
[383684416,1757085039752,-480.0,0.00016164,2]
[383684417,1757085039762,-480.0,0.00016164,2]
[383684418,1757085039772,-480.0,0.00016164,2]
[383684419,1757085039782,-480.0,0.00016164,2]
[383684420,1757085039792,-1041.73,0.00016164,2]
[383684421,1757085039802,-480.0,0.00016164,2]
[383684422,1757085039811,-480.0,0.00016164,2]
[383684423,1757085039821,-689.14,0.00016164,2]
[383684425,1757085039830,-754.63,0.00016164,2]
[383684427,1757085039840,-480.0,0.00016164,2]
[383684429,1757085039850,-480.0,0.00016164,2]
[383684430,1757085039860,-562.7589678,0.00016164,2]
[383684431,1757085039870,-160.0,0.00016165,2]
[383684434,1757085039880,-611.30614242,0.00016273,2]
[383684435,1757085039889,-185.57215406,0.00016438,2]
[383684437,1757085039899,-494.07707975,0.00016438,2]
[383684438,1757085039909,-480.0,0.00016438,2]
[383684440,1757085039919,-480.0,0.00016438,2]
[383684441,1757085039928,-480.0,0.00016438,2]
[383684442,1757085039938,-1010.53,0.00016438,2]
[383684443,1757085039948,-480.0,0.00016438,2]
[383684444,1757085039957,-480.0,0.00016438,2]
[383684445,1757085039967,-480.0,0.00016438,2]
[383684447,1757085039977,-480.0,0.00016438,2]
[383684448,1757085039989,-316.83449801,0.00016438,2]
[383684449,1757085039999,-1041.73,0.00016438,2]
[383684450,1757085040008,-480.0,0.00016438,2]
[383684451,1757085040018,-480.0,0.00016438,2]
[383684453,1757085040028,-689.14,0.00016438,2]
[383684455,1757085040037,-754.63,0.00016438,2]
[383684456,1757085040046,-480.0,0.00016438,2]
[383684457,1757085040056,-480.0,0.00016438,2]
[383684458,1757085040065,-190.0041394,0.00016564,2]
[383684459,1757085040075,-480.0,0.00016712,2]
[383684460,1757085040084,-480.0,0.00016712,2]
[383684461,1757085040093,-480.0,0.00016712,2]
[383684462,1757085040103,-1010.53,0.00016712,2]
[383684463,1757085040112,-480.0,0.00016712,2]
[383684464,1757085040122,-480.0,0.00016712,2]
[383684465,1757085040132,-480.0,0.00016712,2]
[383684466,1757085040142,-480.0,0.00016712,2]
[383684467,1757085040152,-1041.73,0.00016712,2]
[383684469,1757085040162,-214.23,0.00016712,2]
[383684470,1757085040171,-414.61,0.00016712,2]
[383684471,1757085040180,-689.14,0.00016712,2]
[383684472,1757085040190,-754.63,0.00016712,2]
[383684473,1757085040205,-480.0,0.00016712,2]
[383684474,1757085040219,-512.76,0.00016712,2]
[383684475,1757085040235,-260.0,0.00016713,2]
[383684477,1757085040249,-864.0,0.00016779,2]
[383684479,1757085040261,-480.0,0.00016986,2]
[383684481,1757085040272,-480.0,0.00016986,2]
[383684483,1757085040284,-480.0,0.00016986,2]
[383684485,1757085040297,-1010.53,0.00016986,2]
[383684486,1757085040310,-480.0,0.00016986,2]
[383684488,1757085040322,-480.0,0.00016986,2]
[383684489,1757085040335,-480.0,0.00016986,2]
[383684490,1757085040349,-480.0,0.00016986,2]
[383684491,1757085040361,-1041.73,0.00016986,2]
[383684492,1757085040374,-689.14,0.00016986,2]
[383684493,1757085040387,-754.63,0.00016986,2]
[383684495,1757085040401,-480.0,0.00016986,2]
[383684498,1757085040412,-500.0,0.00017243,2]
[383684501,1757085040424,-500.0,0.00017243,2]
[383684503,1757085040436,-176.34761,0.0001726,2]
[383684504,1757085040448,-151.0,0.0001726,2]
[383684505,1757085040459,-480.0,0.0001726,2]
[383684506,1757085040471,-480.0,0.0001726,2]
[383684507,1757085040486,-480.0,0.0001726,2]
[383684508,1757085040509,-1010.53,0.0001726,2]
[383684509,1757085040523,-480.0,0.0001726,2]
[383684510,1757085040534,-480.0,0.0001726,2]
[383684511,1757085040546,-480.0,0.0001726,2]
[383684512,1757085040557,-480.0,0.0001726,2]
[383684513,1757085040568,-1041.73,0.0001726,2]
[383684514,1757085040580,-689.14,0.0001726,2]
[383684515,1757085040591,-754.63,0.0001726,2]
[383684516,1757085040603,-480.0,0.0001726,2]
[383684517,1757085040616,-360.0,0.00017261,2]
[383684518,1757085040629,-500.0,0.00017479,2]
[383684519,1757085040640,-200.931,0.000175,2]
[383684520,1757085040661,-480.0,0.00017534,2]
[383684521,1757085040677,-228.0,0.00017534,2]
[383684522,1757085040689,-608.64,0.00017534,2]
[383684523,1757085040702,-1010.53,0.00017534,2]
[383684524,1757085040715,-480.0,0.00017534,2]
[383684525,1757085040726,-480.0,0.00017534,2]
[383684526,1757085040737,-480.0,0.00017534,2]
[383684527,1757085040748,-480.0,0.00017534,2]
[383684528,1757085040759,-1041.73,0.00017534,2]
[383684529,1757085040771,-689.14,0.00017534,2]
[383684530,1757085040783,-754.63,0.00017534,2]
[383684531,1757085040797,-480.0,0.00017534,2]
[383684532,1757085040810,-1000.0,0.00017791,2]
[383684533,1757085040821,-1000.0,0.00017791,2]
[383684534,1757085040832,-480.0,0.00017808,2]
[383684535,1757085040843,-1010.53,0.00017808,2]
[383684536,1757085040854,-190.77033484,0.00017808,2]
[383684537,1757085040867,-480.0,0.00017808,2]
[383684538,1757085040879,-480.0,0.00017808,2]
[383684539,1757085040889,-480.0,0.00017808,2]
[383684540,1757085040900,-1041.73,0.00017808,2]
[383684541,1757085040912,-689.14,0.00017808,2]
[383684542,1757085040924,-754.63,0.00017808,2]
[383684543,1757085040937,-480.0,0.00017808,2]
[383684544,1757085040948,-460.0,0.00017809,2]
[383684545,1757085040959,-1000.0,0.00018027,2]
[383684546,1757085040971,-410.11001661,0.00018082,2]
[383684547,1757085040984,-1010.53,0.00018082,2]
[383684548,1757085040996,-480.0,0.00018082,2]
[383684549,1757085041007,-480.0,0.00018082,2]
[383684550,1757085041018,-480.0,0.00018082,2]
[383684551,1757085041030,-1041.73,0.00018082,2]
[383684552,1757085041041,-689.14,0.00018082,2]
[383684553,1757085041053,-754.63,0.00018082,2]
[383684554,1757085041064,-480.0,0.00018082,2]
[383684555,1757085041076,-502.4210906,0.00018227,2]
[383684556,1757085041088,-666.89433121,0.00018233,2]
[383684557,1757085041099,-2667.57732485,0.00018233,2]
[383684558,1757085041109,-5996.04693192,0.00018233,2]
[383684559,1757085041121,-225.15165124,0.00018339,2]
[383684560,1757085041132,-1500.0,0.00018339,2]
[383684561,1757085041143,-1010.53,0.00018356,2]
[383684562,1757085041155,-282.84096666,0.00018356,2]
[383684563,1757085041166,-480.0,0.00018356,2]
[383684564,1757085041177,-172.17,0.00018356,2]
[383684565,1757085041188,-1041.73,0.00018356,2]
[383684566,1757085041199,-689.14,0.00018356,2]
[383684567,1757085041210,-754.63,0.00018356,2]
[383684568,1757085041221,-480.0,0.00018356,2]
[383684569,1757085041232,-560.0,0.00018356,2]
[383684570,1757085041243,-168.0,0.00018389,2]
[383684571,1757085041254,-1000.0,0.00018457,2]
[383684572,1757085041265,-500.0,0.00018459,2]
[383684573,1757085041276,-500.0,0.00018459,2]
[383684574,1757085041287,-500.0,0.00018459,2]
[383684575,1757085041298,-168.0,0.00018472,2]
[383684576,1757085041309,-168.0,0.00018532,2]
[383684577,1757085041320,-1500.0,0.00018574,2]
[383684578,1757085041332,-168.0,0.00018618,2]
[383684579,1757085041342,-1010.53,0.0001863,2]
[383684580,1757085041354,-480.0,0.0001863,2]
[383684581,1757085041365,-1041.73,0.0001863,2]
[383684582,1757085041376,-689.14,0.0001863,2]
[383684583,1757085041388,-754.63,0.0001863,2]
[383684584,1757085041400,-480.0,0.0001863,2]
[383684585,1757085041411,-168.0,0.00018637,2]
[383684586,1757085041423,-168.961008,0.00018682,7]
[383684587,1757085041436,-168.0,0.00018695,2]
[383684588,1757085041446,-633.0,0.00018701,2]
[383684589,1757085041455,-744.408,0.00018701,2]
[383684590,1757085041465,-409.0,0.00018701,2]
[383684591,1757085041475,-168.0,0.00018774,2]
[383684592,1757085041487,-2000.0,0.00018887,2]
[383684593,1757085041497,-500.0,0.00018904,2]
[383684594,1757085041507,-1010.53,0.00018904,2]
[383684595,1757085041520,-480.0,0.00018904,2]
[383684596,1757085041529,-1041.73,0.00018904,2]
[383684597,1757085041539,-689.14,0.00018904,2]
[383684598,1757085041548,-754.63,0.00018904,2]
[383684599,1757085041697,-558.2,0.00018904,2]
[383684600,1757085041712,-660.0,0.00018904,2]
[383684601,1757085041722,-168.0,0.00018978,2]
[383684602,1757085041732,-500.0,0.00019007,2]
[383684603,1757085041743,-1000.0,0.00019007,2]
[383684604,1757085041753,-1008.23918784,0.00019007,2]
[383684605,1757085041763,-168.0,0.00019011,2]
[383684606,1757085041774,-2000.0,0.00019122,2]
[383684607,1757085041783,-500.0,0.00019178,2]
[383684608,1757085041792,-1010.53,0.00019178,2]
[383684609,1757085041802,-500.0,0.00019178,2]
[383684610,1757085041811,-500.0,0.00019178,2]
[383684611,1757085041821,-570.96,0.00019178,2]
[383684612,1757085041830,-1041.73,0.00019178,2]
[383684613,1757085041840,-689.14,0.00019178,2]
[383684614,1757085041850,-754.63,0.00019178,2]
[383684615,1757085041860,-151.0,0.00019178,2]
[383684616,1757085041870,-5000.0,0.00019178,2]
[383684617,1757085041880,-2000.58578065,0.00019178,2]
[383684618,1757085041890,-150.0,0.00019178,2]
[383684619,1757085041899,-500.0,0.00019187,2]
[383684620,1757085041909,-168.0,0.00019208,2]
[383684621,1757085041919,-259.8023143,0.00019233,2]
[383684622,1757085041929,-300.0,0.00019315,2]
[383684623,1757085041939,-491.12960853,0.00019351,2]
[383684624,1757085041948,-168.0,0.00019423,2]
[383684625,1757085041959,-2500.0,0.00019435,2]
[383684626,1757085041968,-500.0,0.00019452,2]
[383684627,1757085041978,-500.0,0.00019452,2]
[383684628,1757085041988,-500.0,0.00019452,2]
[383684629,1757085041998,-1010.53,0.00019452,2]
[383684630,1757085042008,-1041.73,0.00019452,2]
[383684631,1757085042017,-689.14,0.00019452,2]
[383684632,1757085042027,-754.63,0.00019452,2]
[383684633,1757085042036,-760.0,0.00019452,2]
[383684634,1757085042046,-150.09693527,0.00019452,2]
[383684635,1757085042055,-168.0,0.00019465,2]
[383684636,1757085042065,-430667.57467707,0.000195,2]
[383684637,1757085042075,-168.0,0.00019504,2]
[383684638,1757085042084,-2700.0,0.0001952,2]
[383684639,1757085042093,-168.0,0.00019544,2]
[383684640,1757085042102,-610.52360543,0.00019555,2]
[383684641,1757085042112,-5000.0,0.00019669,2]
[383684642,1757085042122,-2500.0,0.0001967,2]
[383684643,1757085042132,-168.0,0.00019694,2]
[383684644,1757085042141,-350.0,0.00019708,2]
[383684645,1757085042151,-500.0,0.0001971,2]
[383684646,1757085042160,-500.0,0.00019726,2]
[383684647,1757085042170,-387.55209535,0.00019726,2]
[383684648,1757085042179,-500.0,0.00019726,2]
[383684649,1757085042188,-1010.53,0.00019726,2]
[383684650,1757085042196,-1041.73,0.00019726,2]
[383684651,1757085042205,-689.14,0.00019726,2]
[383684652,1757085042214,-754.63,0.00019726,2]
[383684653,1757085042223,-168.0,0.00019738,2]
[383684654,1757085042238,-500.0,0.00019793,2]
[383684655,1757085042247,-168.0,0.00019833,2]
[383684656,1757085042255,-8448.07539926,0.000199,2]
[383684657,1757085042264,-3000.0,0.00019983,2]
[383684658,1757085042273,-500.0,0.0002,2]
[383684659,1757085042282,-196.19844452,0.0002,2]
[383684660,1757085042291,-156.790496,0.0002,7]
[383684661,1757085042300,-1010.64972344,0.0002,2]
[383684662,1757085042309,-1041.81,0.0002,2]
[383684663,1757085042319,-689.29,0.0002,2]
[383684664,1757085042329,-754.75609152,0.0002,2]
[383684665,1757085042339,-850.3111563,0.0002,4]
[383684666,1757085042348,-860.0,0.0002,2]
[383684667,1757085042357,-168.0,0.00020043,2]
[383684668,1757085042367,-168.0,0.00020066,2]
[383684669,1757085042376,-500.0,0.00020146,2]
[383684670,1757085042385,-440.197386,0.00020187,2]
[383684671,1757085042395,-1000.0,0.000202,2]
[383684672,1757085042404,-1631.04863996,0.00020218,2]
[383684673,1757085042413,-502.01998895,0.00020253,5]
[383684674,1757085042422,-339.0,0.00020274,2]
[383684675,1757085042432,-1000.0,0.00020302,20]
[383684676,1757085042440,-244.0,0.00020302,20]
[383684677,1757085042448,-811.24897969,0.00020389,2]
[383684678,1757085042456,-5000.0,0.00020391,2]
[383684679,1757085042466,-3000.0,0.00020531,2]
[383684680,1757085042475,-511.984441,0.00020548,2]
[383684681,1757085042484,-960.0,0.00020548,2]
[383684682,1757085042495,-2700.0,0.00020616,2]
[383684683,1757085042508,-156.790496,0.000208,5]
[383684684,1757085042519,-151.0,0.000209,3]
[383684685,1757085042528,-3000.0,0.00021,2]
[383684686,1757085042537,-3000.0,0.0002101,2]
[383684687,1757085042547,-3000.0,0.0002102,2]
[383684688,1757085042556,-166.0,0.0002102,2]
[383684689,1757085042565,-156.0,0.0002102,2]
[383684690,1757085042574,-156.0,0.0002102,2]
[383684691,1757085042585,-156.0,0.0002102,2]
[383684692,1757085042594,-156.0,0.0002102,2]
[383684693,1757085042603,-153.78657868,0.0002102,2]
[383684694,1757085042613,-335.62162736,0.0002102,2]
[383684695,1757085042622,-166.0,0.0002102,2]
[383684696,1757085042632,-166.0,0.0002102,2]
[383684698,1757085042641,-166.0,0.0002102,2]
[383684699,1757085042650,-166.0,0.0002102,2]
[383684700,1757085042660,-166.0,0.0002102,2]
[383684701,1757085042670,-172.0,0.0002102,2]
[383684702,1757085042679,-1576.0,0.0002102,2]
[383684703,1757085042689,-192.00000001,0.0002102,2]
[383684704,1757085042698,-1682.0,0.0002102,2]
[383684705,1757085042707,-1682.0,0.0002102,2]
[383684706,1757085042717,-1682.0,0.0002102,2]
[383684707,1757085042727,-1682.0,0.0002102,2]
[383684708,1757085042737,-1682.0,0.0002102,2]
[383684709,1757085042746,-1682.0,0.0002102,2]
[383684710,1757085042756,-1682.0,0.0002102,2]
[383684711,1757085042766,-1682.0,0.0002102,2]
[383684712,1757085042775,-1682.0,0.0002102,2]
[383684713,1757085042784,-1682.0,0.0002102,2]
[383684714,1757085042794,-1682.0,0.0002102,2]
[383684715,1757085042804,-1682.0,0.0002102,2]
[383684716,1757085042813,-1682.0,0.0002102,2]
[383684717,1757085042823,-1682.0,0.0002102,2]
[383684718,1757085042832,-1682.0,0.0002102,2]
[383684719,1757085042841,-1682.0,0.0002102,2]
[383684720,1757085042853,-1682.0,0.0002102,2]
[383684721,1757085042861,-1682.0,0.0002102,2]
[383684722,1757085042870,-1682.0,0.0002102,2]
[383684723,1757085042879,-1682.0,0.0002102,2]
[383684724,1757085042888,-1682.0,0.0002102,2]
[383684725,1757085042897,-1682.0,0.0002102,2]
[383684726,1757085042905,-1682.0,0.0002102,2]
[383684727,1757085042914,-1682.0,0.0002102,2]
[383684728,1757085042923,-1682.0,0.0002102,2]
[383684729,1757085042933,-1682.0,0.0002102,2]
[383684730,1757085042942,-1682.0,0.0002102,2]
[383684731,1757085042951,-1682.0,0.0002102,2]
[383684732,1757085042960,-1682.0,0.0002102,2]
[383684733,1757085042969,-1682.0,0.0002102,2]
[383684734,1757085042979,-1682.0,0.0002102,2]
[383684735,1757085042989,-1682.0,0.0002102,2]
[383684736,1757085042998,-1682.0,0.0002102,2]
[383684737,1757085043007,-1682.0,0.0002102,2]
[383684738,1757085043017,-1682.0,0.0002102,2]